[Event "30th Tamil Nadu IM Norm 2024"]
[Site "Coimbatore"]
[Date "2024.10.01"]
[Round "3.1"]
[White "Tologon tegin, Semetei"]
[Black "Bharadia Yash"]
[Result "1-0"]
[ECO "A48"]
[WhiteElo "2337"]
[BlackElo "2415"]
[Annotator "TA"]
[PlyCount "147"]
[EventDate "2024.09.15"]
[EventCountry "IND"]
[SourceTitle "playchess.com"]
[Source "ChessBase"]
[SourceQuality "1"]
[TimeControl "5400+30"]

{[%evp 15,147,0,38,44,47,37,53,-49,-15,-41,-14,-34,0,-59,-25,-93,-23,-14,0,-29,104,88,117,98,115,121,155,140,175,145,175,131,175,188,224,167,174,126,178,74,118,81,88,-37,138,0,13,8,153,120,187,105,174,68,167,114,155,112,243,205,261,142,179,181,191,199,224,132,209,201,249,262,259,264,251,267,276,270,269,227,253,212,258,190,185,160,231,201,187,53,98,45,72,46,49,16,112,51,98,18,194,182,154,131,166,91,138,30,47,0,54,-53,-38,-80,-87,-167,-109,-131,-95,-124,-92,-101,449,450,714,710,1204,1143,7257,7257,2873,2818,29995,29996]} 1. d4 {[%emt 0:00:01]} Nf6 {[%emt 0:00:05]} 2. c3 {[%emt 0:00:09]} g6 {[%emt 0:03:42]} 3. Bg5 {[%emt 0:00:10]} Bg7 {[%emt 0:00:10]} 4. Nd2 {[%emt 0:00:26]} d6 {[%emt 0:02:14]} 5. e3 {[%emt 0:00:42]} O-O {[%emt 0:00:43]} 6. Ngf3 {[%emt 0:00:35]} Nbd7 {[%emt 0:01:55]} 7. Bd3 {[%emt 0:02:51]} e5 {[%emt 0:00:53]} 8. O-O {[%emt 0:00:06]} Qe8 {[%emt 0:03:02]} 9. e4 {[%emt 0:00:28] heeft verloren aan populariteit (9.Qc2). A48: 1 d4 Pf6 2 Pf3 g6: Torre, London en Colle Systemen.} h6 {[%emt 0:03:19] OK} 10. Bh4 {[%emt 0:02:20] OK} Nh5 {[%emt 0:00:36] OK} 11. dxe5 {[%emt 0:00:27] Fout (1.0)} (11. Re1 $14) 11... dxe5 {[%emt 0:01:27] Onnauwkeurig} 12. Re1 $1 {[%emt 0:00:36] Sterk} Nc5 {[%emt 0:01:14] OK} 13. Bf1 {[%emt 0:00:36] OK} Bg4 {[%emt 0:01:26] Onnauwkeurig} 14. Qc2 {[%emt 0:01:23] Fout (0.6)} (14. b4 $11 Ne6 15. h3 Bxf3 16. Qxf3) 14... a5 {[%emt 0:01:44] Onnauwkeurig} 15. a4 $146 {[%emt 0:00:10] Fout (0.7)} (15. b4 $1 $11 Qa4 16. Qb2) ({Predecessor:} 15. b4 Ne6 16. a4 axb4 17. cxb4 f5 18. exf5 Bxf5 19. Ne4 Kh8 20. a5 g5 21. Bg3 {1-0 Deviatkin,A (2569)-Shashikant,K (2261) Chennai op 5th 2013 (3)}) 15... Nf4 {[%emt 0:01:10] Fout (0.7)} (15... Bd7 $17 {[%cal Rd7a4]} 16. b3 b6) 16. b4 $11 {[%emt 0:06:22] OK} Na6 {[%emt 0:17:18][%cal Ra5b4,Bc5a6,Ba6b8,Bb8d7][%mdl 32] EV=14.45} 17. Reb1 {[%emt 0:03:10] Onnauwkeurig} Qc8 {[%emt 0:09:28] Houdt de partij in balans. Fout (1.3)} (17... g5 $11 18. Bg3 Qe7) 18. h3 {[%emt 0:12:42]} ({Verwerp} 18. bxa5 $6 Bh5 $14) 18... Be6 {[%emt 0:15:23] Onnauwkeurig} 19. Nc4 {[%emt 0:19:26] OK} ({Doe niet} 19. bxa5 Re8 $14) 19... axb4 {[%emt 0:00:40]} 20. cxb4 {[%emt 0:00:07][%cal Bc3b4,Bb4b5][%mdl 32] EV=18.36. Goes to b5 (dbg))} f6 {[%emt 0:04:30][%cal Bf7f6,Bf6f5][%mdl 32] EV=19.08} 21. a5 {[%emt 0:04:42] OK} Nb8 {[%emt 0:01:56]} 22. b5 {[%emt 0:00:41] OK} Nd7 {[%emt 0:00:36]} 23. Rc1 {[%emt 0:03:13]} b6 {[%emt 0:07:02] Onnauwkeurig} 24. Nfd2 {[%emt 0:01:40]} f5 {[%emt 0:06:41]} 25. f3 {[%emt 0:11:20]} Kh8 {[%emt 0:07:12]} 26. Bf2 {[%emt 0:00:58] Fout (0.5)} (26. a6 $18) 26... Bg8 {[%emt 0:01:03] was hoogst noodzakelijk. Fout (0.5)} (26... Qd8 $16 27. a6 Nc5) 27. Nb3 {[%emt 0:17:48] biedt betere winstkansen. Fout (1.0)} ({Weersta} 27. axb6 $6 Rxa1 28. Rxa1 Nxb6 $16) (27. a6 $18) 27... fxe4 $16 {[%emt 0:02:46] OK} 28. fxe4 {[%emt 0:00:04][%cal Ra5b6] Onnauwkeurig} Qd8 {[%emt 0:02:28] OK} 29. g3 {[%emt 0:03:39] Fout (1.2)} (29. Qc3 $16) 29... Qg5 $2 {[%emt 0:00:27] [#] Fout (1.8)} (29... Ne6 $15) {Wit moet spelen} 30. Kh2 {[%emt 0:00:07] Fout (1.4)} ({En niet} 30. axb6 Rxa1 31. Rxa1 cxb6 $11) (30. Qd1 $1 $16) 30... Nh5 {[%emt 0:01:04]} 31. Qe2 $36 {[%emt 0:01:42][%mdl 2048] Voorkomt Rf3. Zwart moet nu a6 voorkomen. Wit heeft goed spel. OK} Be6 {[%emt 0:01:44] Fout (1.4)} (31... bxa5 $1 $11 32. Nbxa5 (32. Ncxa5 Ndf6 $18) 32... Rab8) 32. Bg2 {[%emt 0:00:26]} (32. axb6 $2 {te hebberig.} Rxa1 33. Rxa1 Bxc4 $19) 32... Qe7 {[%emt 0:01:36] Fout (0.7)} (32... bxa5 $16 33. Ncxa5 Nhf6) 33. Be1 {[%emt 0:02:27] Fout (0.8)} (33. axb6 Rxa1 34. Nxa1 (34. Rxa1 Qf7 $18) 34... cxb6 $16) (33. a6 $18) 33... Nhf6 {[%emt 0:00:45] was nodig. Fout (0.7)} (33... bxa5 $16 34. Nbxa5 (34. Ncxa5 Nb6 $18) 34... Nb8) 34. Bd2 {[%emt 0:02:38] Fout (1.1)} (34. a6 $18) {Zwart zou moeten proberen} 34... Nh5 {[%emt 0:00:28] Fout (1.0)} (34... g5 $14) {Wit zou moeten spelen} 35. Be1 {[%emt 0:01:41] Fout (0.5)} (35. a6 $18) 35... Kh7 {[%emt 0:00:25] Onnauwkeurig} 36. a6 {[%emt 0:01:21] OK} Qf7 {[%emt 0:00:40] gaat door met vechten. Fout (1.3)} (36... Rfc8 $16 37. Qd2 Qf7) 37. Rab1 {[%emt 0:00:17]} Ra7 {[%emt 0:00:32]} 38. Qd3 {[%emt 0:01:14] Fout (1.2)} (38. Nbd2 $18) 38... Rd8 {[%emt 0:00:32]} 39. Ne3 {[%emt 0:00:32] OK} Nhf6 {[%emt 0:00:16] OK} 40. Qc2 {[%emt 0:00:31]} Bf8 {[%emt 0:00:32]} 41. Nc4 {[%emt 0:00:04] Fout (0.9)} (41. Bc3 $18) 41... Nh5 {[%emt 0:00:30] Fout (0.8)} (41... Rc8 $16) 42. Qe2 {[%emt 0:00:19]} Re8 {[%emt 0:00:27]} 43. Bf2 {[%emt 0:00:17] OK} Rea8 {[%emt 0:00:13]} 44. Be3 {[%emt 0:00:39]} Kg8 {[%emt 0:00:46]} 45. Ncd2 {[%emt 0:00:18]} Qe7 {[%emt 0:00:41]} 46. Bf1 {[%emt 0:00:22]} Nhf6 {[%emt 0:00:28]} 47. Qe1 {[%emt 0:00:22]} Kh7 {[%emt 0:00:38]} 48. Qe2 {[%emt 0:01:27]} Ne8 {[%emt 0:00:15]} 49. Qd3 {[%emt 0:00:18]} Nd6 {[%emt 0:00:18] OK} 50. Rc2 {[%emt 0:00:25]} Qf7 {[%emt 0:00:56] was een poging waard. Fout (0.7)} (50... Bg7 $16 51. Rc6 Bg8) 51. Rbc1 $18 {[%emt 0:01:01][%cal Rc2c7] OK} Nf6 {[%emt 0:00:13]} 52. Rc3 {[%emt 0:00:29] Fout (1.3)} (52. Na5 $18) 52... Nfe8 {[%emt 0:00:32] Onnauwkeurig} {Wit zou moeten proberen} 53. Nc5 {[%emt 0:00:35] Fout (0.5)} (53. Qb1 $16) 53... bxc5 $14 {[%emt 0:00:13] Beste (Gemakkelijk)} 54. Bxc5 {[%emt 0:00:02] Onnauwkeurig} Nc8 {[%emt 0:00:30] OK} 55. Bxa7 {[%emt 0:00:05] OK} Rxa7 {[%emt 0:00:04] blijft gelijk. Fout (1.0)} (55... Nxa7 $11 56. Qe3 Bd6) 56. Qe3 {[%emt 0:00:22] Fout (0.6)} (56. Qf3 $16) 56... Bb4 {[%emt 0:00:28] OK} 57. R3c2 {[%emt 0:00:34] Fout (0.8)} (57. Rc6 $16) 57... Ba5 $2 {[%emt 0:01:30] en Zwart blijft veilig. Verliest partij (1.8)} (57... Qe7 $11) 58. Nc4 $18 {[%emt 0:00:15] OK} Bxc4 {[%emt 0:00:25] OK} 59. Bxc4 {[%emt 0:00:04]} Qe7 {[%emt 0:00:07] Zwart is zwak op de lichte velden} 60. Bd5 {[%emt 0:00:56] Fout (0.8)} (60. Ba2 $18) {Zwart zou moeten spelen} 60... Bb6 {[%emt 0:00:06] Fout (0.5)} (60... Nf6) 61. Qf3 {[%emt 0:00:46] Wit is veel actiever. Fout (1.1)} (61. Qb3 $16) 61... Ncd6 $11 {[%emt 0:00:17] OK} 62. Bc6 {[%emt 0:00:04]} Ng7 {[%emt 0:00:04] Beste} {Beter is} 63. Rd1 {[%emt 0:01:54] Fout (1.1)} (63. Qc3 $14) 63... Ne6 $15 {[%emt 0:00:07] Beste (Gemakkelijk)} 64. Rcd2 {[%emt 0:00:31] Onnauwkeurig} Nd4 {[%emt 0:00:14] OK} 65. Rxd4 {[%emt 0:00:17] Fout (0.8)} exd4 $19 {[%emt 0:02:35] Onnauwkeurig} 66. Rf1 {[%emt 0:00:07][%cal Bd1f1,Bf1f6,Bf6g6][%mdl 32] EV=24.24. Goes to g6 (dbg)). OK} h5 {[%emt 0:00:23] Dreigt te winnen met ...Nc4.} 67. Qf4 {[%emt 0:00:15] Onnauwkeurig} Nc4 {[%emt 0:00:26] ...Kg7 zou dodelijk zijn.} 68. e5 {[%emt 0:00:40][%cal Be4e5,Be5e6][%mdl 32] [#] EV=30.03. Goes to e6 (dbg)). Beste} Kg7 $2 {[%emt 0:00:48][%mdl 8192] houdt druk op de ketel. Verliest partij (5.5)} (68... Qxe5 $2 {vergaat.} 69. Qf7+ Kh6 70. Be4 $18 (70. Qxc4 h4 $18)) ({Speel niet} 68... Nxe5 $6 69. Re1 $11) (68... Bc5 $1 $17 {[%cal Rc4e5]} 69. Qf7+ Qxf7 70. Rxf7+ Kh6) 69. e6 $1 $18 {[%emt 0:00:44] Sterk} Nd6 {[%emt 0:00:08] Voorkomt Qf7+. Fout (2.6)} (69... h4 $142 70. Qf7+ Qxf7 71. Rxf7+ Kh8) 70. Qe5+ {[%emt 0:00:09] Beste (Gemakkelijk)} Kg8 {[%emt 0:00:39] Onnauwkeurig} 71. Rf6 {[%emt 0:00:56]} Nf5 {[%emt 0:00:42]} 72. Rxg6+ {[%emt 0:00:10]} Ng7 {[%emt 0:00:03] [#]} 73. Be8 $1 {[%emt 0:00:48][%mdl 512] Wit dreigt Bf7+ en mat.} Kf8 {[%emt 0:00:59]} (73... c6 74. Bf7+) 74. Bf7 {[%emt 0:00:06] Blunder waarde: Wit=0.44/Zwart=0.44.  Verliest partij:   	---       	Zwart=2      Fout:        	Wit=20     	Zwart=14     Onnauwkeurig:    	Wit=5      	Zwart=9      OK:         	Wit=14     	Zwart=12     Beste:        	Wit=2      	Zwart=3      Sterk:        	Wit=2      	---} 1-0

[Event "30th Tamil Nadu IM Norm 2024"]
[Site "Coimbatore"]
[Date "2024.10.01"]
[Round "3.2"]
[White "Nandish V S"]
[Black "Mohamed Anees M"]
[Result "0-1"]
[ECO "D31"]
[WhiteElo "2212"]
[BlackElo "2347"]
[Annotator "RC"]
[PlyCount "148"]
[EventDate "2024.09.15"]
[EventCountry "IND"]
[SourceTitle "playchess.com"]
[Source "ChessBase"]
[SourceQuality "1"]
[TimeControl "5400+30"]

1. c4 {[%emt 0:00:01]} e6 {[%emt 0:00:50]} 2. Nc3 {[%emt 0:00:10]} d5 {[%emt 0:00:07]} 3. d4 {[%emt 0:00:05]} a6 {[%emt 0:01:17]} 4. cxd5 {[%emt 0:00:06]} exd5 {[%emt 0:00:05]} 5. Bf4 {[%emt 0:00:30]} Nf6 {[%emt 0:01:02]} 6. e3 {[%emt 0:00:10]} Bd6 {[%emt 0:02:27]} 7. Bxd6 {[%emt 0:00:10]} Qxd6 {[%emt 0:00:06]} 8. Bd3 {[%emt 0:00:10]} O-O {[%emt 0:00:44]} 9. h3 {[%emt 0:00:11]} b6 {[%emt 0:01:11]} 10. Nf3 {[%emt 0:00:15]} Nbd7 {[%emt 0:00:31]} 11. Qc2 {[%emt 0:02:59]} Bb7 {[%emt 0:01:53]} 12. O-O {[%emt 0:09:38]} Rfe8 {[%emt 0:01:28]} 13. Rfe1 {[%emt 0:07:29]} Rac8 {[%emt 0:04:54]} 14. Qe2 {[%emt 0:09:04]} b5 {[%emt 0:08:15]} 15. Qd1 {[%emt 0:04:35]} Ne4 {[%emt 0:02:32]} 16. Ne2 {[%emt 0:01:39]} Nb6 {[%emt 0:06:20]} 17. Rc1 {[%emt 0:12:29]} f6 {[%emt 0:05:29]} 18. Nf4 {[%emt 0:04:10]} g5 {[%emt 0:04:43]} 19. Nh5 {[%emt 0:00:38]} Qe6 {[%emt 0:07:09]} 20. Nh2 {[%emt 0:14:23]} Nd7 {[%emt 0:05:50]} 21. f3 {[%emt 0:07:09]} Nd6 {[%emt 0:00:07]} 22. Ng3 {[%emt 0:00:56]} Kh8 {[%emt 0:11:14]} 23. Qc2 {[%emt 0:07:34]} c5 {[%emt 0:02:42]} 24. Bf5 {[%emt 0:01:58]} Nxf5 {[%emt 0:00:55]} 25. Qxf5 {[%emt 0:00:09]} c4 {[%emt 0:00:56]} 26. Qc2 {[%emt 0:02:39]} Qf7 {[%emt 0:05:35]} 27. Qf5 {[%emt 0:03:29]} Qe6 {[%emt 0:02:33]} 28. Qxe6 {[%emt 0:05:37]} Rxe6 {[%emt 0:00:05]} 29. Nf5 {[%emt 0:00:08]} Rce8 {[%emt 0:02:17]} 30. g4 {[%emt 0:00:28]} Nb8 {[%emt 0:01:28]} 31. Nf1 {[%emt 0:01:23]} Nc6 {[%emt 0:04:03]} 32. a3 {[%emt 0:00:22]} h5 {[%emt 0:02:23]} 33. gxh5 {[%emt 0:00:35]} Ne7 {[%emt 0:00:53]} 34. N1g3 {[%emt 0:01:23]} Nxf5 {[%emt 0:00:00]} 35. Nxf5 {[%emt 0:00:01]} Bc8 {[%emt 0:00:09]} 36. Kf2 {[%emt 0:03:06]} Rb6 {[%emt 0:00:57]} 37. Ng3 {[%emt 0:00:20]} Bxh3 {[%emt 0:01:45]} 38. e4 {[%emt 0:00:40]} dxe4 {[%emt 0:00:58]} 39. fxe4 {[%emt 0:00:03]} Rd6 {[%emt 0:00:46]} 40. Rcd1 {[%emt 0:01:23]} Bg4 {[%emt 0:00:06]} 41. Rd2 {[%emt 0:00:10]} Kh7 {[%emt 0:00:28]} 42. d5 {[%emt 0:00:52]} Rdd8 {[%emt 0:04:28]} 43. a4 {[%emt 0:01:37]} Kg8 {[%emt 0:06:56]} 44. axb5 {[%emt 0:00:17]} axb5 {[%emt 0:00:01]} 45. Ke3 {[%emt 0:00:56]} f5 {[%emt 0:00:39]} 46. Kd4 {[%emt 0:00:02]} f4 {[%emt 0:00:14]} 47. Nh1 {[%emt 0:01:04]} Bf3 {[%emt 0:00:15]} 48. Nf2 {[%emt 0:00:23]} Kf7 {[%emt 0:01:04]} 49. Kc5 {[%emt 0:00:49]} Kf6 {[%emt 0:00:25]} 50. Kxb5 {[%emt 0:00:24]} g4 {[%emt 0:00:05]} 51. Kxc4 {[%emt 0:00:26]} g3 {[%emt 0:01:43]} 52. Nd3 {[%emt 0:00:22]} Bxe4 {[%emt 0:01:00]} 53. Nxf4 {[%emt 0:00:35]} Ke5 {[%emt 0:02:16]} 54. Nd3+ {[%emt 0:00:39]} Kd6 {[%emt 0:00:03]} 55. Nc5 {[%emt 0:00:35]} Rc8 {[%emt 0:00:05]} 56. b4 {[%emt 0:00:03]} g2 {[%emt 0:00:41]} 57. h6 {[%emt 0:00:50]} Re5 {[%emt 0:00:47]} 58. h7 {[%emt 0:00:39]} Bxh7 {[%emt 0:00:56]} 59. Ra1 {[%emt 0:00:19]} Rg5 {[%emt 0:00:33]} 60. Ra6+ {[%emt 0:00:40]} Ke5 {[%emt 0:00:01]} 61. Re2+ {[%emt 0:00:32]} Kf4 {[%emt 0:00:14]} 62. Rf6+ {[%emt 0:00:17]} Kg3 {[%emt 0:00:48]} 63. Re3+ {[%emt 0:00:27]} Kg4 {[%emt 0:00:13]} 64. Re1 {[%emt 0:00:29]} Bg8 {[%emt 0:00:06]} 65. Rd6 {[%emt 0:00:46]} Rf8 {[%emt 0:01:18]} 66. Ne4 {[%emt 0:00:26]} Rf1 {[%emt 0:00:23]} 67. Nxg5 {[%emt 0:00:35]} Rxe1 {[%emt 0:00:53]} 68. Rg6 {[%emt 0:00:28]} Kf5 {[%emt 0:00:11]} 69. Rxg8 {[%emt 0:00:30]} g1=Q {[%emt 0:00:09]} 70. Rf8+ {[%emt 0:00:04]} Kg4 {[%emt 0:00:08]} 71. Ne6 {[%emt 0:00:49]} Re4+ {[%emt 0:01:05]} 72. Kb5 {[%emt 0:00:30]} Qb1 {[%emt 0:00:39]} 73. d6 {[%emt 0:00:39]} Qxb4+ {[%emt 0:00:08]} 74. Kc6 {[%emt 0:00:03]} Rxe6 {[%emt 0:00:09]} 0-1

[Event "30th Tamil Nadu IM Norm 2024"]
[Site "Coimbatore"]
[Date "2024.10.01"]
[Round "3.3"]
[White "Dhruva Thota"]
[Black "Podolchenko, Evgeniy"]
[Result "0-1"]
[ECO "B12"]
[WhiteElo "2342"]
[BlackElo "2338"]
[Annotator "RC"]
[PlyCount "68"]
[EventDate "2024.09.15"]
[EventCountry "IND"]
[SourceTitle "playchess.com"]
[Source "ChessBase"]
[SourceQuality "1"]
[TimeControl "5400+30"]

1. e4 {[%emt 0:00:33]} c6 {[%emt 0:00:05]} 2. d4 {[%emt 0:00:10]} d5 {[%emt 0:00:03]} 3. e5 {[%emt 0:00:40]} Bf5 {[%emt 0:00:03]} 4. Nf3 {[%emt 0:00:28]} e6 {[%emt 0:00:05]} 5. Be2 {[%emt 0:00:19]} Nd7 {[%emt 0:00:14]} 6. O-O {[%emt 0:00:22]} a6 {[%emt 0:00:18]} 7. c3 {[%emt 0:02:17]} c5 {[%emt 0:02:52]} 8. Nbd2 {[%emt 0:02:09]} h6 {[%emt 0:06:09]} 9. c4 {[%emt 0:03:56]} dxc4 {[%emt 0:02:29]} 10. Nxc4 {[%emt 0:00:42]} b5 {[%emt 0:02:43]} 11. Ne3 {[%emt 0:09:45]} Be4 {[%emt 0:01:07]} 12. a4 {[%emt 0:02:41]} Rb8 {[%emt 0:05:30]} 13. axb5 {[%emt 0:09:24]} axb5 {[%emt 0:01:09]} 14. d5 {[%emt 0:02:38]} Ne7 {[%emt 0:06:48]} 15. dxe6 {[%emt 0:05:09]} fxe6 {[%emt 0:00:02]} 16. Nd2 {[%emt 0:01:07]} Bc6 {[%emt 0:03:25]} 17. f4 {[%emt 0:10:47]} g6 {[%emt 0:12:57]} 18. Nb3 {[%emt 0:07:52]} Nd5 {[%emt 0:10:23]} 19. Bd3 {[%emt 0:02:29]} Rg8 {[%emt 0:01:44]} 20. Na5 {[%emt 0:09:35]} Ba8 {[%emt 0:01:45]} 21. Qc2 {[%emt 0:06:30]} Kf7 {[%emt 0:03:11]} 22. f5 {[%emt 0:03:18]} gxf5 {[%emt 0:00:37]} 23. Bxf5 {[%emt 0:06:25]} exf5 {[%emt 0:02:06]} 24. e6+ {[%emt 0:01:48]} Kg7 {[%emt 0:01:31]} 25. exd7 {[%emt 0:02:39]} Qxd7 {[%emt 0:01:50]} 26. Nxf5+ {[%emt 0:01:21]} Kh8 {[%emt 0:00:47]} 27. b3 {[%emt 0:00:58]} Nb4 {[%emt 0:06:34]} 28. Qc3+ {[%emt 0:02:33]} Kh7 {[%emt 0:00:33]} 29. Ne3 {[%emt 0:01:58]} Bg7 {[%emt 0:01:18]} 30. Qxc5 {[%emt 0:00:33]} Bd4 {[%emt 0:01:27]} 31. Rf7+ {[%emt 0:00:47]} Qxf7 {[%emt 0:00:06]} 32. Qxd4 {[%emt 0:00:05]} Rbf8 {[%emt 0:00:25]} 33. Qd2 {[%emt 0:01:18]} Bxg2 {[%emt 0:00:43]} 34. Nf5 {[%emt 0:00:42]} Ba8+ {[%emt 0:00:18]} 0-1

[Event "30th Tamil Nadu IM Norm 2024"]
[Site "Coimbatore"]
[Date "2024.10.01"]
[Round "3.4"]
[White "Annageldyev, Orazly"]
[Black "Aakash G"]
[Result "1/2-1/2"]
[ECO "C01"]
[WhiteElo "2105"]
[BlackElo "2279"]
[Annotator "RC"]
[PlyCount "64"]
[EventDate "2024.09.15"]
[EventCountry "IND"]
[SourceTitle "playchess.com"]
[Source "ChessBase"]
[SourceQuality "1"]
[TimeControl "5400+30"]

1. e4 {[%emt 0:00:02]} e6 {[%emt 0:00:10]} 2. d4 {[%emt 0:00:08]} d5 {[%emt 0:00:04]} 3. Nc3 {[%emt 0:00:09]} Nf6 {[%emt 0:00:06]} 4. exd5 {[%emt 0:00:23]} exd5 {[%emt 0:00:08]} 5. Bd3 {[%emt 0:00:22]} Be7 {[%emt 0:02:34]} 6. h3 {[%emt 0:01:46]} O-O {[%emt 0:01:01]} 7. Nf3 {[%emt 0:00:20]} c5 {[%emt 0:01:08]} 8. dxc5 {[%emt 0:00:16]} Bxc5 {[%emt 0:01:33]} 9. O-O {[%emt 0:00:12]} Nc6 {[%emt 0:02:39]} 10. a3 {[%emt 0:01:43]} Qd6 {[%emt 0:04:27]} 11. Na4 {[%emt 0:03:52]} a6 {[%emt 0:04:03]} 12. Nxc5 {[%emt 0:00:18]} Qxc5 {[%emt 0:00:03]} 13. b4 {[%emt 0:02:07]} Qd6 {[%emt 0:01:44]} 14. Bb2 {[%emt 0:00:14]} Rd8 {[%emt 0:01:54]} 15. Re1 {[%emt 0:00:56]} b6 {[%emt 0:06:45]} 16. Nd4 {[%emt 0:03:50]} Nxd4 {[%emt 0:11:10]} 17. Bxd4 {[%emt 0:00:17]} Bb7 {[%emt 0:00:09]} 18. Qf3 {[%emt 0:01:35]} Ne4 {[%emt 0:01:01]} 19. Qg4 {[%emt 0:04:39]} Qh6 {[%emt 0:01:24]} 20. Be3 {[%emt 0:09:55]} Qc6 {[%emt 0:06:20]} 21. f3 {[%emt 0:06:36]} Nf6 {[%emt 0:05:14]} 22. Qh4 {[%emt 0:00:33]} h6 {[%emt 0:03:56]} 23. Bd4 {[%emt 0:04:24]} b5 {[%emt 0:03:43]} 24. Re7 {[%emt 0:03:42]} Bc8 {[%emt 0:01:13]} 25. Bxf6 {[%emt 0:06:51]} Qxf6 {[%emt 0:00:40]} 26. Qxf6 {[%emt 0:00:13]} gxf6 {[%emt 0:00:04]} 27. Kf2 {[%emt 0:01:00]} Bd7 {[%emt 0:01:20]} 28. Ree1 {[%emt 0:02:43]} Kf8 {[%emt 0:04:07]} 29. Ke3 {[%emt 0:01:42]} d4+ {[%emt 0:05:46]} 30. Kd2 {[%emt 0:00:43]} a5 {[%emt 0:01:05]} 31. Rab1 {[%emt 0:00:37]} Bc6 {[%emt 0:01:56]} 32. a4 {[%emt 0:14:02]} bxa4 {[%emt 0:03:58]} 1/2-1/2

[Event "30th Tamil Nadu IM Norm 2024"]
[Site "Coimbatore"]
[Date "2024.10.01"]
[Round "3.5"]
[White "Manik, Mikulas"]
[Black "Arnav Maheshwari"]
[Result "1/2-1/2"]
[ECO "B94"]
[WhiteElo "2316"]
[BlackElo "2293"]
[Annotator "RC"]
[PlyCount "60"]
[EventDate "2024.09.15"]
[EventCountry "IND"]
[SourceTitle "playchess.com"]
[Source "ChessBase"]
[SourceQuality "1"]
[TimeControl "5400+30"]

1. e4 {[%emt 0:00:04]} c5 {[%emt 0:01:22]} 2. Nf3 {[%emt 0:00:04]} d6 {[%emt 0:00:17]} 3. d4 {[%emt 0:00:02]} cxd4 {[%emt 0:00:11]} 4. Nxd4 {[%emt 0:00:03]} Nf6 {[%emt 0:00:13]} 5. Nc3 {[%emt 0:00:02]} a6 {[%emt 0:00:12]} 6. Bg5 {[%emt 0:00:04]} Nbd7 {[%emt 0:00:14]} 7. Bc4 {[%emt 0:00:03]} Qb6 {[%emt 0:00:10]} 8. Bb3 {[%emt 0:00:08]} e6 {[%emt 0:00:10]} 9. Bxf6 {[%emt 0:00:09]} Nxf6 {[%emt 0:00:54]} 10. Qd2 {[%emt 0:00:14]} Be7 {[%emt 0:08:26]} 11. O-O-O {[%emt 0:00:32]} O-O {[%emt 0:02:07]} 12. f4 {[%emt 0:02:43]} Nd7 {[%emt 0:19:38]} 13. g4 {[%emt 0:01:40]} Nc5 {[%emt 0:00:54]} 14. g5 {[%emt 0:03:55]} Qc7 {[%emt 0:07:26]} 15. Kb1 {[%emt 0:20:33]} b5 {[%emt 0:03:49]} 16. a3 {[%emt 0:00:15]} Qb7 {[%emt 0:07:34]} 17. f5 {[%emt 0:08:10]} Bd7 {[%emt 0:01:38]} 18. fxe6 {[%emt 0:09:08]} Bxe6 {[%emt 0:07:47]} 19. Nf5 {[%emt 0:10:56]} Bxb3 {[%emt 0:12:49]} 20. cxb3 {[%emt 0:02:34]} Rfd8 {[%emt 0:01:06]} 21. Qd5 {[%emt 0:15:17]} Bf8 {[%emt 0:12:05]} 22. Qxb7 {[%emt 0:01:05]} Nxb7 {[%emt 0:00:07]} 23. b4 {[%emt 0:00:15]} Re8 {[%emt 0:01:03]} 24. Rhf1 {[%emt 0:04:53]} Rac8 {[%emt 0:02:10]} 25. Rf4 {[%emt 0:01:45]} Re6 {[%emt 0:02:54]} 26. Nd5 {[%emt 0:01:18]} Nd8 {[%emt 0:00:58]} 27. Rdf1 {[%emt 0:00:55]} Rc4 {[%emt 0:02:04]} 28. h4 {[%emt 0:02:43]} Kh8 {[%emt 0:00:52]} 29. Rc1 {[%emt 0:01:42]} Rxc1+ {[%emt 0:02:25]} 30. Kxc1 {[%emt 0:00:02]} h6 {[%emt 0:02:00]} 1/2-1/2